bitfinex-derivatives/quotes_BTCF0:USTF0_20241110
["timestamp","ask_amount","ask_price","bid_price","bid_amount"]
[1731278216895,0.00013962,80750.0,80741.0,0.1866386]
[1731278217598,0.00013962,80750.0,80743.0,0.061878]
[1731278217909,0.00013962,80750.0,80744.0,0.18527485]
[1731278218295,0.00013962,80750.0,80746.0,0.061875]
[1731278218499,0.00013962,80750.0,80749.0,0.061873]
[1731278218906,0.00013962,80750.0,80749.0,0.24803337]
[1731278219301,0.17698719,80778.0,80749.0,0.24803337]
[1731278219302,0.3608,80814.0,80772.0,0.6299]
[1731278219501,0.35622237,80900.0,80750.0,0.70018]
[1731278219502,0.02479111,80887.0,80857.0,0.3608]
[1731278219708,0.02479111,80887.0,80777.0,0.061852]
[1731278219709,0.06828312,80886.0,80876.0,0.3608]
[1731278219900,0.06828312,80885.0,80870.0,0.3608]
[1731278220103,0.06825891,80884.0,80870.0,0.3608]
[1731278220302,0.3,80885.0,80861.0,0.3608]
[1731278220303,0.000139,80883.0,80861.0,0.3608]
[1731278220700,0.000139,80883.0,80881.0,0.3608]
[1731278221096,0.000139,80883.0,80882.0,0.18531122]
[1731278221307,0.000139,80883.0,80882.0,0.36229841]
[1731278221506,0.671059,80883.0,80868.0,0.3608]
[1731278221710,0.671059,80883.0,80847.0,0.3608]
[1731278221711,0.23876919,80869.0,80847.0,0.3608]
[1731278221906,0.3608,80877.0,80847.0,0.3608]
[1731278221907,0.17698719,80859.0,80847.0,0.3608]
[1731278222105,0.3608,80848.0,80815.0,0.3733]
[1731278222301,0.3608,80848.0,80817.0,0.3608]
[1731278222503,0.3608,80833.0,80806.0,0.3608]
[1731278222710,0.3608,80825.0,80800.0,9.3e-05]
[1731278222898,0.3608,80825.0,80800.0,0.360893]
[1731278223104,0.3608,80812.0,80802.0,0.18578877]
[1731278223409,0.22396,80811.0,80800.0,9.3e-05]
[1731278223708,0.22396,80810.0,80804.0,0.3608]
[1731278224109,0.22396,80810.0,80805.0,0.18445141]
[1731278224905,0.22396,80810.0,80806.0,0.18663399]
[1731278225407,0.22396,80810.0,80807.0,0.18682867]
[1731278225611,0.22396,80810.0,80800.0,9.3e-05]
[1731278225809,0.22396,80810.0,80806.0,0.3608]
[1731278226199,0.22396,80810.0,80800.0,9.3e-05]
[1731278226613,0.22396,80810.0,80801.0,0.18453524]
[1731278226813,0.22396,80810.0,80800.0,9.3e-05]
[1731278229205,0.52396,80810.0,80800.0,9.3e-05]
[1731278229711,0.27700092,80806.0,80769.0,0.737757]
[1731278229909,0.27700092,80806.0,80769.0,0.6634]
[1731278230113,0.3608,80796.0,80780.0,0.37129897]
[1731278230414,0.3608,80796.0,80770.0,0.18625516]
[1731278230608,0.63780092,80796.0,80766.0,0.3608]
[1731278230912,0.63780092,80796.0,80779.0,0.18613581]
[1731278230913,0.93780092,80796.0,80779.0,0.18613581]
[1731278231115,0.93780092,80796.0,80773.0,0.00014352]
[1731278231310,9.38e-05,80795.0,80780.0,0.18613581]
[1731278231708,9.38e-05,80795.0,80773.0,0.00014352]
[1731278232113,9.38e-05,80795.0,80775.0,0.18481178]
[1731278232306,9.38e-05,80795.0,80774.0,0.37148775]
[1731278232607,9.38e-05,80795.0,80776.0,0.18507225]
[1731278232804,9.38e-05,80795.0,80775.0,0.18507225]
[1731278233008,9.38e-05,80795.0,80774.0,0.36999932]
[1731278233210,0.3608,80789.0,80776.0,0.18507225]
[1731278233524,0.4162,80788.0,80775.0,0.18481191]
[1731278233812,0.4162,80788.0,80777.0,0.18481191]
[1731278234016,0.4162,80788.0,80776.0,0.18481191]
[1731278234515,0.4162,80788.0,80778.0,0.18481191]
[1731278234826,0.4162,80788.0,80773.0,0.00014352]
[1731278234827,0.478044,80788.0,80777.0,0.18526416]
[1731278235012,0.478044,80788.0,80779.0,0.18526416]
[1731278235212,0.478044,80788.0,80773.0,0.00014352]
[1731278235611,0.3608,80781.0,80776.0,0.18587225]
[1731278235807,0.3608,80781.0,80773.0,0.00014352]
[1731278235808,0.27700092,80777.0,80773.0,0.00014352]
[1731278236008,0.3608,80774.0,80773.0,0.00014352]
[1731278236409,1.0322,80774.0,80743.0,0.3608]
[1731278236607,0.3608,80772.0,80750.0,0.30177156]
[1731278236809,0.58952,80780.0,80758.0,0.3608]
[1731278237012,0.58888,80780.0,80751.0,0.73186709]
[1731278237213,0.3608,80771.0,80759.0,0.37106709]
[1731278237412,0.3608,80771.0,80750.0,0.02477064]
[1731278237413,0.3608,80764.0,80757.0,0.00011816]
[1731278239422,0.061866,80760.0,80757.0,0.00011816]
[1731278239724,0.061865,80760.0,80757.0,0.00011816]
[1731278240614,0.061866,80759.0,80757.0,0.00011816]
[1731278242414,0.37148,80758.0,80757.0,0.00011816]
[1731278243420,0.3608,80758.0,80757.0,0.00011816]
[1731278243620,0.3608,80761.0,80757.0,0.37198165]
[1731278243816,0.3608,80772.0,80757.0,0.37198165]
[1731278244617,0.3608,80769.0,80759.0,0.3608]
[1731278244924,0.3608,80769.0,80760.0,0.18558039]
[1731278245130,0.422658,80769.0,80760.0,0.18558039]
[1731278245316,0.422658,80769.0,80758.0,0.18558039]
[1731278245626,0.422658,80769.0,80761.0,0.18611202]
[1731278245826,0.422658,80769.0,80757.0,0.00011816]
[1731278245827,0.422658,80769.0,80759.0,0.18611202]
[1731278246126,0.422658,80769.0,80762.0,0.18611202]
[1731278246127,0.3608,80769.0,80762.0,0.18611202]
[1731278246422,0.061863,80763.0,80757.0,0.00011816]
[1731278246723,0.061866,80758.0,80757.0,0.00011816]
[1731278246924,0.281906,80758.0,80757.0,0.00011816]
[1731278247616,0.95232,80758.0,80740.0,0.00214]
[1731278247819,0.3608,80745.0,80740.0,0.00214]
[1731278248629,0.00014612,80744.0,80740.0,0.00214]
[1731278250618,0.061878,80743.0,80740.0,0.00214]
[1731278251019,0.061879,80742.0,80740.0,0.00214]
[1731278251714,0.37156,80741.0,80740.0,0.00214]
[1731278251913,0.37156,80741.0,80717.0,0.3082]
[1731278251914,0.061891,80727.0,80717.0,0.3082]
[1731278252113,0.3608,80725.0,80717.0,0.3082]
[1731278252319,0.3608,80725.0,80718.0,0.18589672]
[1731278254023,0.3608,80742.0,80719.0,0.18601847]
[1731278254226,0.00064,80754.0,80739.0,0.3608]
[1731278254529,0.22012,80755.0,80740.0,0.37218615]
[1731278254926,0.22012,80743.0,80740.0,0.37218615]
[1731278255618,0.22012,80743.0,80740.0,0.18616768]
[1731278255821,0.3608,80741.0,80717.0,0.669]
[1731278256021,0.422687,80732.0,80717.0,0.3082]
[1731278256219,0.422687,80732.0,80725.0,0.3721164]
[1731278256220,0.3608,80732.0,80725.0,0.3721164]
[1731278256421,0.3608,80732.0,80719.0,0.3721164]
[1731278256422,0.061891,80726.0,80718.0,0.18533096]
[1731278256627,0.3608,80725.0,80717.0,0.3082]
[1731278256823,0.3608,80725.0,80720.0,0.18473287]
[1731278257024,0.3608,80725.0,80719.0,0.18473287]
[1731278257223,0.3608,80725.0,80717.0,0.3082]
[1731278257427,0.3608,80725.0,80721.0,0.18473287]
[1731278257625,0.3608,80725.0,80720.0,0.18473287]
[1731278257831,0.3608,80725.0,80717.0,0.3082]
[1731278258224,0.3608,80725.0,80721.0,0.18658393]
[1731278258525,0.3608,80725.0,80717.0,0.3082]
[1731278258726,0.7772,80732.0,80717.0,0.3082]
[1731278259029,0.7772,80732.0,80721.0,0.18538925]
[1731278259228,0.7772,80732.0,80718.0,0.18538925]
[1731278259531,0.839087,80732.0,80721.0,0.18538925]
[1731278260030,0.839087,80732.0,80718.0,0.18603015]
[1731278260338,0.24221227,80731.0,80721.0,0.18603015]
[1731278260538,0.21188,80731.0,80721.0,0.18603015]
[1731278260725,0.77784,80732.0,80718.0,0.18633778]
[1731278260925,0.21188,80731.0,80723.0,0.3608]
[1731278261130,0.3608,80752.0,80729.0,0.061889]
[1731278261131,0.21188,80735.0,80729.0,0.061889]
[1731278261333,0.21188,80735.0,80731.0,0.3608]
[1731278261638,0.21188,80735.0,80732.0,0.18624193]
[1731278261938,0.061874,80748.0,80732.0,0.18624193]
[1731278262134,0.3608,80752.0,80732.0,0.18624193]
[1731278262731,0.061873,80750.0,80732.0,0.18624193]
[1731278263441,0.3608,80752.0,80733.0,0.18642781]
[1731278263836,0.3608,80752.0,80734.0,0.18662693]
[1731278264244,0.21188,80743.0,80734.0,0.18662693]
[1731278264434,0.21188,80743.0,80736.0,0.061883]
[1731278264637,0.21188,80743.0,80734.0,0.18662693]
[1731278264846,0.21188,80743.0,80732.0,0.18498415]
[1731278265139,0.21188,80743.0,80735.0,0.18498415]
[1731278265342,0.21188,80743.0,80733.0,0.24686915]
[1731278265642,0.21188,80743.0,80732.0,0.061886]
[1731278265949,0.21188,80743.0,80734.0,0.18474727]
[1731278266245,0.21188,80743.0,80732.0,0.061886]
[1731278266433,0.21188,80743.0,80735.0,0.18474727]
[1731278266634,0.21188,80743.0,80734.0,0.18474727]
[1731278266841,0.21188,80743.0,80732.0,0.061886]
[1731278267234,0.21188,80743.0,80735.0,0.18489274]
[1731278267545,0.21188,80743.0,80732.0,0.061886]
[1731278267747,0.21188,80743.0,80736.0,0.18595498]
[1731278267945,0.21188,80743.0,80735.0,0.18595498]
[1731278268142,0.03032311,80742.0,80732.0,0.061886]
[1731278268348,0.21188,80743.0,80737.0,0.18595498]
[1731278268548,0.03032305,80742.0,80736.0,0.18595498]
[1731278268752,0.03032305,80742.0,80732.0,0.061886]
[1731278268753,0.03032288,80741.0,80739.0,0.3608]
[1731278269044,0.03032261,80740.0,80739.0,0.3608]
[1731278269646,0.03032261,80740.0,80739.0,0.54690249]
[1731278271545,0.03032261,80740.0,80713.0,0.0001482]
[1731278271546,1.71780513,80740.0,80713.0,0.0001482]
[1731278271745,0.3608,80717.0,80713.0,0.0001482]
[1731278271944,0.21188,80716.0,80714.0,0.37019422]
[1731278272447,0.06835396,80715.0,80713.0,0.0001482]
[1731278272639,0.06835396,80714.0,80713.0,0.0001482]
[1731278272946,0.06835396,80715.0,80713.0,0.0001482]
[1731278273146,0.03033324,80714.0,80713.0,0.0001482]
[1731278273847,0.06835586,80714.0,80713.0,0.0001482]
[1731278274450,0.03802262,80714.0,80713.0,0.0001482]
[1731278274659,0.06835586,80715.0,80713.0,0.0001482]
[1731278275855,0.13025486,80715.0,80713.0,0.0001482]
[1731278276043,0.06835586,80714.0,80713.0,0.0001482]
[1731278277043,0.06836334,80714.0,80713.0,0.0001482]
[1731278278255,0.061902,80712.0,80686.0,0.3224]
[1731278278448,0.3608,80694.0,80686.0,0.3224]
[1731278278642,0.21192,80693.0,80691.0,0.18687365]
[1731278278848,0.21192,80693.0,80687.0,0.37187023]
[1731278279157,0.21192,80693.0,80692.0,0.18484011]
[1731278279354,0.21205487,80693.0,80692.0,0.18484011]
[1731278279548,0.21205487,80693.0,80689.0,0.18484011]
[1731278279748,0.21205487,80693.0,80692.0,0.18689722]
[1731278279955,0.21205487,80693.0,80688.0,0.00015143]
[1731278280144,0.21205487,80693.0,80689.0,0.18689722]
[1731278280345,0.21205487,80693.0,80692.0,0.18689722]
[1731278280547,0.74677428,80693.0,80666.0,0.05778483]
[1731278280848,0.061947,80653.0,80644.0,0.3018]
[1731278281154,0.17684252,80672.0,80642.0,0.18705868]
[1731278281155,0.89844252,80645.0,80642.0,0.18705868]
[1731278281359,0.89844252,80645.0,80641.0,0.05992761]
[1731278281360,0.17684252,80643.0,80641.0,0.05992761]
[1731278281554,0.17684252,80643.0,80639.0,0.0001235]
[1731278281750,0.00015323,80642.0,80639.0,0.0001235]
[1731278281949,0.00015323,80642.0,80636.0,0.0125]
[1731278281950,0.17684252,80640.0,80636.0,0.0125]
[1731278282161,0.00015323,80642.0,80636.0,0.0125]
[1731278282162,0.3608,80637.0,80636.0,0.0125]
[1731278282556,0.3608,80637.0,80619.0,0.3167]
[1731278282854,0.27349976,80625.0,80620.0,0.3717845]
[1731278283254,0.27349976,80625.0,80618.0,0.00015746]
[1731278283457,0.3608,80619.0,80618.0,0.00015746]
[1731278284264,0.73292,80619.0,80580.0,0.3608]
[1731278284447,0.3608,80604.0,80585.0,0.0583176]
[1731278284751,0.3608,80604.0,80603.0,0.18550461]
[1731278284957,0.3608,80604.0,80586.0,0.37220589]
[1731278285157,0.3608,80604.0,80580.0,0.61824]
[1731278285158,0.3608,80604.0,80580.0,0.31824]
[1731278285348,0.3608,80604.0,80600.0,0.00010212]
[1731278285761,0.3608,80629.0,80601.0,1.10332986]
[1731278285949,0.3608,80629.0,80614.0,0.3608]
[1731278286261,0.3608,80629.0,80615.0,0.68818639]
[1731278287860,0.3608,80622.0,80615.0,0.68818639]
[1731278288064,0.3608,80622.0,80615.0,0.50286496]
[1731278288360,0.27349976,80620.0,80615.0,0.50286496]
[1731278289063,0.37212,80619.0,80600.0,0.00010212]
[1731278289251,0.57349976,80620.0,80600.0,0.00010212]
[1731278289252,0.27349976,80604.0,80600.0,0.00010212]
[1731278289557,0.27349976,80604.0,80601.0,0.18622714]
[1731278290058,0.72256001,80607.0,80602.0,0.55772542]
[1731278290257,0.7216,80607.0,80602.0,0.18552542]
[1731278290456,0.7216,80607.0,80603.0,0.18712166]
[1731278290664,0.3608,80624.0,80603.0,0.10178627]
[1731278290856,0.3608,80624.0,80604.0,0.18546857]
[1731278291159,0.3608,80625.0,80605.0,0.1855282]
[1731278291362,0.3608,80625.0,80606.0,0.3235]
[1731278291563,0.3608,80625.0,80606.0,0.50896857]
[1731278291753,0.3608,80625.0,80607.0,0.1855282]
[1731278291954,0.3608,80644.0,80620.0,0.3608]
[1731278292255,0.3608,80644.0,80630.0,0.3608]
[1731278292657,0.27349976,80645.0,80631.0,0.18589494]
[1731278293263,0.3608,80666.0,80631.0,0.18589494]
[1731278293264,0.27349976,80666.0,80641.0,0.3608]
[1731278293455,0.27349976,80666.0,80632.0,0.5569737]
[1731278293456,0.3608,80681.0,80661.0,0.3608]
[1731278293758,0.41692,80711.0,80680.0,0.3608]
[1731278293759,0.27349976,80696.0,80680.0,0.3608]
[1731278293958,0.27349976,80706.0,80680.0,0.26001403]
[1731278294159,0.27349976,80706.0,80681.0,0.37068339]
[1731278294357,0.00015763,80695.0,80681.0,0.37068339]
[1731278294556,0.3608,80716.0,80688.0,0.3608]
[1731278294754,0.25267519,80806.0,80711.0,0.3608]
[1731278294755,0.3608,80741.0,80711.0,0.3608]
[1731278294960,0.27349976,80727.0,80711.0,0.3608]
[1731278295163,0.061891,80726.0,80711.0,0.3608]
[1731278295358,0.3608,80722.0,80692.0,0.3608]
[1731278295669,0.27349976,80706.0,80704.0,0.37243062]
[1731278295875,0.422708,80705.0,80704.0,0.37243062]
[1731278296168,0.422708,80705.0,80684.0,0.37105792]
[1731278296362,0.27349976,80689.0,80675.0,0.3608]
[1731278296667,0.3608,80687.0,80642.0,0.3608]
[1731278296962,0.27349976,80661.0,80644.0,0.3717282]
[1731278297164,0.3608,80651.0,80644.0,0.3717282]
[1731278297368,0.27349976,80650.0,80633.0,0.3717282]
[1731278297566,0.27349976,80650.0,80609.0,0.061981]
[1731278297567,0.27349976,80634.0,80622.0,9.157e-05]
[1731278297866,0.00014832,80649.0,80634.0,0.37185142]
[1731278298163,0.00014832,80649.0,80635.0,0.3608]
[1731278298371,0.00014832,80649.0,80635.0,0.54603358]
[1731278298561,0.00014832,80649.0,80635.0,0.73265142]
[1731278298763,0.02481352,80645.0,80623.0,0.38801]
[1731278299063,0.02481352,80645.0,80638.0,0.3608]
[1731278299268,0.02481352,80645.0,80634.0,0.37242657]
[1731278299470,0.02481352,80645.0,80639.0,0.18709113]
[1731278299772,0.02481352,80645.0,80637.0,0.18709113]
[1731278299963,0.3608,80643.0,80640.0,0.18510444]
[1731278300466,0.372,80642.0,80608.0,0.3608]
[1731278300666,0.3608,80625.0,80608.0,0.3608]
[1731278300862,0.3608,80625.0,80623.0,0.18510444]
[1731278301065,0.3608,80625.0,80608.0,0.3608]
[1731278303064,0.3608,80625.0,80603.0,0.3254]
[1731278303272,0.3608,80625.0,80594.0,0.00186097]
[1731278303273,0.27349976,80623.0,80594.0,0.00186097]
[1731278303574,0.27349976,80623.0,80595.0,0.37122838]
[1731278303575,0.3608,80614.0,80595.0,0.37122838]
[1731278304368,0.3608,80614.0,80600.0,0.00010046]
[1731278304765,0.3608,80625.0,80607.0,0.3608]
[1731278305160,0.47971901,80638.0,80621.0,0.061971]
[1731278305161,0.00088001,80638.0,80621.0,0.061971]
[1731278305476,0.061942,80659.0,80630.0,0.3608]
[1731278305771,0.3608,80665.0,80631.0,0.18539803]
[1731278305974,0.3608,80665.0,80648.0,0.3608]
[1731278306370,0.3608,80665.0,80648.0,0.54670283]
[1731278306668,0.061949,80650.0,80648.0,0.18590283]
[1731278306868,0.061958,80640.0,80622.0,0.30484]
[1731278307063,0.3608,80638.0,80622.0,0.3042]
[1731278307370,0.3608,80638.0,80623.0,0.18641791]
[1731278307371,0.3608,80629.0,80623.0,0.18641791]
[1731278307565,0.3608,80629.0,80603.0,0.3262]
[1731278307869,0.3608,80629.0,80610.0,0.37163382]
[1731278308069,0.3608,80629.0,80604.0,0.37359877]
[1731278308269,0.422766,80628.0,80603.0,0.3262]
[1731278308464,0.422766,80628.0,80610.0,0.18673189]
[1731278308674,0.3608,80621.0,80605.0,0.18673189]
[1731278308972,0.3608,80621.0,80606.0,0.18491421]
[1731278309363,0.3608,80621.0,80605.0,0.18491421]
[1731278309565,0.3608,80621.0,80607.0,0.18491421]
[1731278309971,0.3608,80621.0,80606.0,0.18491421]
[1731278310168,0.3608,80621.0,80605.0,0.18555318]
[1731278310169,0.3608,80621.0,80608.0,0.18555318]
[1731278310367,0.3608,80621.0,80607.0,0.18555318]
[1731278310770,0.3608,80628.0,80613.0,0.3608]
[1731278310975,0.3608,80628.0,80613.0,0.27547799]
[1731278311175,0.3608,80628.0,80614.0,0.37274484]
[1731278314182,0.02481266,80626.0,80614.0,0.37274484]
[1731278319886,0.3608,80628.0,80614.0,0.37274484]
[1731278320789,0.3608,80650.0,80633.0,0.061962]
[1731278321104,0.02481266,80652.0,80627.0,0.3608]
[1731278321105,0.02481266,80652.0,80640.0,0.061956]
[1731278321510,0.02481266,80652.0,80634.0,0.66471706]
[1731278321511,0.02481266,80652.0,80641.0,0.37380477]
[1731278321803,0.02481266,80652.0,80637.0,0.422759]
[1731278322104,0.02481266,80652.0,80642.0,0.18606571]
[1731278322602,0.02481266,80652.0,80639.0,0.18606571]
[1731278322899,0.3608,80654.0,80643.0,0.061954]
[1731278323303,0.3608,80654.0,80644.0,0.24791226]
[1731278323703,0.3608,80654.0,80644.0,0.061953]
[1731278323900,0.3608,80654.0,80645.0,0.18595926]
[1731278324203,0.36176001,80676.0,80645.0,0.55795926]
[1731278324409,0.36176001,80676.0,80656.0,0.422744]
[1731278324410,0.06840682,80675.0,80656.0,0.422744]
[1731278324706,0.03035142,80674.0,80657.0,0.55424935]
[1731278324908,0.03035142,80673.0,80657.0,0.73921561]
[1731278325100,0.03035042,80672.0,80657.0,0.67727161]
[1731278325297,0.02481974,80675.0,80658.0,0.061943]
[1731278325298,0.00013976,80666.0,80658.0,0.061943]
[1731278325499,0.00013976,80666.0,80663.0,0.3608]
[1731278326007,0.00013976,80666.0,80664.0,0.37292873]
[1731278326309,0.00013976,80666.0,80664.0,0.43486673]
[1731278326900,0.3608,80687.0,80665.0,0.37192]
[1731278327195,0.0303468,80686.0,80678.0,0.3608]
[1731278327399,0.08673074,80701.0,80678.0,0.3608]
[1731278327599,0.08673074,80701.0,80685.0,0.422722]
[1731278327800,0.061905,80708.0,80688.0,0.06192]
[1731278328000,0.00015592,80695.0,80689.0,0.3718]
[1731278328202,0.00015592,80695.0,80689.0,0.74446296]
[1731278329699,0.02481974,80726.0,80705.0,0.061907]
[1731278329903,0.061885,80735.0,80689.0,0.67266296]
[1731278329904,0.0303293,80725.0,80717.0,0.3608]
[1731278330204,0.061885,80735.0,80718.0,0.18479259]
[1731278330405,0.3608,80736.0,80718.0,0.18479259]
[1731278330607,0.00015947,80729.0,80728.0,9.24e-05]
[1731278331005,0.00015947,80729.0,80728.0,0.18488499]
[1731278331206,0.00015947,80729.0,80728.0,0.54568499]
[1731278331802,0.00015947,80729.0,80728.0,9.24e-05]
[1731278332008,0.36095947,80729.0,80728.0,9.24e-05]
[1731278332208,0.06204847,80729.0,80728.0,9.24e-05]
[1731278333315,0.42284847,80729.0,80728.0,9.24e-05]
[1731278333514,0.36095947,80729.0,80728.0,9.24e-05]
[1731278333907,0.00015947,80729.0,80728.0,9.24e-05]
[1731278335310,0.00015947,80729.0,80728.0,0.18490929]
[1731278335705,0.00015947,80729.0,80728.0,0.54570929]
[1731278335912,0.00015947,80729.0,80728.0,0.73048633]
[1731278336915,0.00015947,80729.0,80728.0,1.10208633]
[1731278337511,0.00015947,80729.0,80728.0,0.18490929]
[1731278337818,0.00015947,80729.0,80728.0,9.24e-05]
[1731278340817,0.67175947,80729.0,80699.0,0.061911]
[1731278341018,0.3608,80713.0,80694.0,0.3608]
[1731278341314,0.3608,80713.0,80692.0,0.061917]
[1731278341516,0.3608,80713.0,80686.0,0.3608]
[1731278341723,0.27349976,80709.0,80686.0,0.00012952]
[1731278341927,0.3608,80689.0,80686.0,0.00012952]
[1731278342618,0.3718,80688.0,80686.0,0.00012952]
[1731278342820,0.3718,80688.0,80662.0,0.06194]
[1731278343015,0.3608,80689.0,80662.0,0.06194]
[1731278343217,0.3608,80689.0,80663.0,0.37247279]
[1731278343825,0.00011662,80688.0,80663.0,0.37262147]
[1731278344426,0.00011662,80688.0,80664.0,0.061938]
[1731278344822,0.00011662,80688.0,80665.0,0.37268266]
[1731278347123,0.00011662,80688.0,80667.0,0.3608]
[1731278347345,0.00011662,80688.0,80683.0,0.3608]
[1731278347516,0.6908,80718.0,80684.0,0.3315]
[1731278347517,0.3608,80718.0,80684.0,0.3315]
[1731278347720,0.96169976,80732.0,80684.0,0.3315]
[1731278347721,0.3608,80725.0,80710.0,0.3608]
[1731278348121,0.3608,80741.0,80719.0,0.3608]
[1731278348324,0.3608,80741.0,80722.0,0.7216]
[1731278348529,9.782e-05,80729.0,80723.0,0.0001512]
[1731278348723,9.782e-05,80729.0,80723.0,0.18560996]
[1731278349529,9.782e-05,80729.0,80723.0,0.43334466]
[1731278350525,9.782e-05,80729.0,80723.0,0.0001512]
[1731278350526,0.3608,80728.0,80723.0,0.0001512]
[1731278350828,0.061892,80725.0,80723.0,0.0001512]
[1731278351129,0.061901,80714.0,80683.0,0.061924]
[1731278351319,0.3,80728.0,80676.0,0.3608]
[1731278351320,0.3608,80709.0,80676.0,0.3608]
[1731278351521,0.3608,80698.0,80668.0,0.3608]
[1731278351717,0.3608,80685.0,80659.0,0.00076]
[1731278351922,0.3608,80675.0,80653.0,9.13e-05]
[1731278352122,0.3608,80667.0,80653.0,9.13e-05]
[1731278352324,0.3608,80667.0,80654.0,0.37256346]
[1731278352522,0.3608,80659.0,80654.0,0.18675016]
[1731278352723,0.3608,80658.0,80635.0,0.06196]
[1731278352928,0.3608,80666.0,80635.0,0.06196]
[1731278353124,0.3608,80666.0,80636.0,0.37156104]
[1731278353831,0.3608,80666.0,80645.0,9.885e-05]
[1731278354334,0.3608,80666.0,80646.0,0.18577614]
[1731278356425,0.422745,80656.0,80646.0,0.18577614]
[1731278356625,0.3608,80647.0,80645.0,9.885e-05]
[1731278356830,0.422752,80647.0,80645.0,9.885e-05]
[1731278357037,0.372,80646.0,80645.0,9.885e-05]
[1731278357533,0.061958,80640.0,80615.0,0.6765]
[1731278357844,0.3608,80633.0,80616.0,0.3725211]
[1731278358133,0.3608,80633.0,80609.0,0.37080299]
[1731278358134,0.3608,80625.0,80609.0,0.37080299]
[1731278358523,0.3608,80625.0,80618.0,0.00012385]
[1731278359527,0.3608,80625.0,80588.0,0.061996]
[1731278359528,0.27349976,80620.0,80588.0,0.061996]
[1731278359729,0.3608,80614.0,80588.0,0.061996]
[1731278359923,0.3608,80614.0,80600.0,0.18713829]
[1731278360236,0.3608,80614.0,80590.0,0.061995]
[1731278360428,0.3608,80614.0,80601.0,0.18512312]
[1731278360625,0.3608,80614.0,80600.0,0.00014885]
[1731278361037,0.3608,80614.0,80602.0,0.18512312]
[1731278361229,0.3608,80614.0,80601.0,0.18512312]
[1731278361529,0.3608,80614.0,80600.0,0.00014885]
[1731278361743,0.061968,80626.0,80600.0,0.00014885]
[1731278361744,0.29628,80628.0,80604.0,0.061984]
[1731278361928,0.29628,80628.0,80603.0,0.3608]
[1731278361929,0.12909976,80632.0,80611.0,0.3608]
[1731278362122,0.12909976,80632.0,80618.0,0.3608]
[1731278362326,0.65796001,80642.0,80625.0,0.3608]
[1731278362626,0.02480489,80640.0,80626.0,0.18702772]
[1731278362826,0.02480489,80640.0,80632.0,0.3608]
[1731278363032,0.02480489,80640.0,80634.0,0.3608]
[1731278363233,0.00014009,80655.0,80642.0,0.061955]
[1731278363529,0.00014009,80655.0,80654.0,0.3608]
[1731278363730,0.02494498,80655.0,80654.0,0.3608]
[1731278365233,0.00014009,80655.0,80654.0,0.3608]
[1731278366132,0.00014009,80655.0,80654.0,0.54598941]
[1731278366335,0.00014009,80655.0,80654.0,0.7322686]
[1731278367037,0.28728,80674.0,80654.0,1.1661746]
[1731278367336,0.28728,80674.0,80670.0,0.3608]
[1731278368034,0.0001372,80673.0,80670.0,0.3608]
[1731278368530,0.061944,80657.0,80654.0,0.00079374]
[1731278368734,0.0001372,80673.0,80655.0,0.3608]
[1731278368934,0.061935,80669.0,80655.0,0.3608]
[1731278369239,0.33543476,80669.0,80655.0,0.3608]
[1731278369531,0.33543476,80669.0,80654.0,0.00015374]
[1731278369532,0.061938,80665.0,80654.0,0.00015374]
[1731278369851,0.061938,80665.0,80657.0,0.3608]
[1731278370535,0.061938,80665.0,80654.0,0.00015374]
[1731278370839,0.27349976,80669.0,80661.0,0.3608]
[1731278372233,0.27349976,80669.0,80663.0,0.3608]
[1731278373126,0.27349976,80669.0,80654.0,0.00015374]
[1731278373531,0.57349976,80669.0,80654.0,0.00015374]
[1731278373933,0.27349976,80658.0,80654.0,0.00015374]
[1731278374134,0.061949,80651.0,80637.0,0.3608]
[1731278374335,0.28728,80650.0,80637.0,0.3608]
[1731278374535,0.27349976,80645.0,80635.0,0.3608]
[1731278375238,0.061957,80640.0,80631.0,0.00186015]
[1731278375433,0.27421976,80645.0,80631.0,0.00186015]
[1731278375741,0.33545276,80645.0,80631.0,0.00186015]
[1731278376338,0.061955,80643.0,80631.0,0.00186015]
[1731278376536,0.27413976,80645.0,80629.0,0.3608]
[1731278376746,0.061957,80640.0,80629.0,0.3608]
[1731278377438,0.061958,80639.0,80623.0,0.00010972]
[1731278377639,0.061958,80639.0,80628.0,0.3608]
[1731278378038,0.061958,80639.0,80623.0,0.00010972]
[1731278378240,0.69105976,80645.0,80623.0,0.00010972]
[1731278378439,0.69105976,80645.0,80629.0,0.3608]
[1731278378440,0.69041976,80645.0,80629.0,0.3608]
[1731278378744,0.00068,80648.0,80643.0,0.3608]
[1731278378938,0.02481757,80655.0,80644.0,0.3608]
[1731278379339,0.02481757,80655.0,80654.0,0.3608]
[1731278379542,0.00072,80661.0,80654.0,0.3608]
[1731278379745,0.00064,80675.0,80654.0,0.9078552]
[1731278379946,0.27832,80686.0,80672.0,0.3608]
[1731278380140,0.27832,80685.0,80672.0,0.3608]
[1731278380449,0.27832,80685.0,80672.0,0.54558152]
[1731278381739,0.06838779,80684.0,80672.0,0.54558152]
[1731278381939,0.03048561,80673.0,80672.0,0.54558152]
[1731278384156,0.0001372,80673.0,80672.0,0.54558152]
[1731278384746,0.061935,80669.0,80651.0,0.3608]
[1731278384950,0.03034784,80668.0,80662.0,0.3608]
[1731278385151,0.061938,80665.0,80652.0,0.18707246]
[1731278385348,0.06839598,80664.0,80651.0,0.3608]
[1731278385841,0.0001372,80673.0,80663.0,0.3608]
[1731278386044,0.00064,80691.0,80677.0,0.061928]
[1731278386248,0.04444896,80703.0,80690.0,0.3608]
[1731278386551,0.02481757,80712.0,80690.0,0.3608]
[1731278386855,0.02480329,80701.0,80690.0,0.3608]
[1731278387046,0.00010799,80694.0,80690.0,0.3608]
[1731278390747,0.00010799,80694.0,80691.0,0.18643789]
[1731278391549,0.00010799,80694.0,80692.0,0.061917]
[1731278391957,0.26808,80711.0,80694.0,0.061916]
[1731278392248,0.26808,80711.0,80694.0,0.422716]
[1731278392452,0.02481757,80725.0,80694.0,1.10504951]
[1731278392643,0.26808,80727.0,80724.0,0.3608]
[1731278393041,0.00012901,80726.0,80724.0,0.3608]
[1731278394951,0.00012901,80726.0,80725.0,0.18543147]
[1731278396057,0.00012901,80726.0,80725.0,0.24732347]
[1731278397962,0.00012901,80726.0,80725.0,0.18543147]
[1731278399162,0.00012901,80726.0,80725.0,0.3608]
[1731278399365,0.00012901,80726.0,80701.0,0.3246]